bitfinex-derivatives/quotes_ETHF0:USTF0_20241008
["timestamp","ask_amount","ask_price","bid_price","bid_amount"]
[1728419349848,3.21538179,2440.5,2440.4,0.40995]
[1728419353347,2.75548179,2440.5,2440.4,0.40995]
[1728419353750,0.6073,2440.5,2440.4,0.40995]
[1728419356554,3.29629772,2440.5,2440.4,0.40995]
[1728419357747,0.6073,2440.5,2440.4,0.40995]
[1728419358148,3.29415892,2440.5,2440.4,0.40995]
[1728419358550,0.6073,2440.5,2440.4,0.40995]
[1728419359056,1.01723,2440.5,2440.4,0.40995]
[1728419365662,0.6073,2440.5,2440.4,0.40995]
[1728419365850,3.29481581,2440.5,2440.4,0.40995]
[1728419373061,0.6073,2440.5,2440.4,0.40995]
[1728419374564,3.2943167,2440.5,2440.4,0.40995]
[1728419375171,0.6073,2440.5,2440.4,0.40995]
[1728419376056,3.29432055,2440.5,2440.4,0.40995]
[1728419376557,0.6073,2440.5,2440.4,0.40995]
[1728419377662,3.29429742,2440.5,2440.4,0.40995]
[1728419377859,3.29425878,2440.5,2440.4,0.40995]
[1728419379257,0.6073,2440.5,2440.4,0.40995]
[1728419379457,3.29413974,2440.5,2440.4,0.40995]
[1728419379658,0.6073,2440.5,2440.4,0.40995]
[1728419379860,3.29417505,2440.5,2440.4,0.40995]
[1728419385466,0.6073,2440.5,2440.4,0.40995]
[1728419385966,3.29336048,2440.5,2440.4,0.40995]
[1728419386574,0.6073,2440.5,2440.4,0.40995]
[1728419387972,3.29341804,2440.5,2440.4,0.40995]
[1728419388371,0.6073,2440.5,2440.4,0.40995]
[1728419388669,3.29336153,2440.5,2440.4,0.40995]
[1728419389072,3.29336762,2440.5,2440.4,0.40995]
[1728419391676,0.6073,2440.5,2440.4,0.40995]
[1728419392173,3.29518184,2440.5,2440.4,0.40995]
[1728419393074,0.6073,2440.5,2440.4,0.40995]
[1728419393472,3.29523513,2440.5,2440.4,0.40995]
[1728419396474,2.68793513,2440.5,2440.4,5.98755]
[1728419396676,4.01302452,2440.6,2440.4,12.91852605]
[1728419396880,2.68793513,2440.9,2440.8,0.40988]
[1728419397075,2.68793513,2440.9,2440.8,1.88988]
[1728419397373,2.68793513,2440.9,2440.8,2.96579212]
[1728419397575,2.68793513,2441.0,2440.9,0.40986]
[1728419399771,2.68793513,2441.1,2440.8,1.8768]
[1728419399977,2.68793513,2441.1,2441.0,0.40985]
[1728419400677,0.81992,2441.2,2441.1,0.40983]
[1728419402778,0.4101,2441.2,2441.1,0.40983]
[1728419402980,3.09224777,2441.2,2441.1,1.88983]
[1728419403480,0.4101,2441.2,2441.1,1.88983]
[1728419403788,3.50205777,2441.2,2441.1,0.40983]
[1728419404081,4.98205777,2441.2,2441.1,0.40983]
[1728419404882,4.57224777,2441.2,2441.1,0.40983]
[1728419405083,4.98205777,2441.2,2441.1,0.40983]
[1728419412180,14.66904777,2441.2,2440.6,1.02475]
[1728419412381,1.88991,2440.7,2440.6,0.40991]
[1728419412783,7.17411,2440.7,2440.6,0.40991]
[1728419413792,1.59651,2440.7,2440.6,0.40991]
[1728419414393,5.69411,2440.7,2440.6,0.40991]
[1728419414790,0.40994,2440.6,2440.5,0.40992]
[1728419415385,0.40994,2440.6,2440.3,2.91362]
[1728419415386,4.27865777,2440.7,2440.3,2.91362]
[1728419415586,1.59651,2440.7,2440.6,0.40991]
[1728419416592,5.69411,2440.7,2440.6,0.40991]
[1728419418183,1.59651,2440.7,2440.6,0.40991]
[1728419422597,5.88994777,2440.8,2440.5,1.48]
[1728419422791,0.8201,2441.0,2440.6,2.91597]
[1728419422995,0.8201,2441.0,2440.9,1.48]
[1728419423197,0.8201,2441.0,2440.9,1.88986]
[1728419424196,1.22995,2441.0,2440.9,0.40986]
[1728419424896,0.8201,2441.0,2440.9,0.40986]
[1728419425097,6.70797777,2441.2,2441.1,0.40983]
[1728419426494,4.02583,2441.2,2441.1,0.40983]
[1728419427090,6.70797777,2441.2,2441.1,0.40983]
[1728419427396,7.77814777,2441.2,2441.0,1.2539]
[1728419427708,2.55318119,2441.1,2441.0,0.40984]
[1728419427899,0.40983,2441.1,2441.0,0.40984]
[1728419428800,2.5535404,2441.1,2441.0,0.40984]
[1728419430197,0.40983,2441.1,2441.0,0.40984]
[1728419432005,2.55315921,2441.1,2441.0,0.40984]
[1728419432202,0.40983,2441.1,2441.0,0.40984]
[1728419432705,2.55318265,2441.1,2440.9,1.43451]
[1728419432900,2.55318265,2441.1,2441.0,0.40985]
[1728419439009,2.14334265,2441.1,2441.0,0.40985]
[1728419439715,2.14334265,2441.1,2441.0,1.20515]
[1728419442501,3.09197777,2441.2,2441.0,0.7953]
[1728419442717,3.09197777,2441.2,2441.1,0.40983]
[1728419442907,3.09197777,2441.2,2441.1,0.79493]
[1728419443809,2.68214777,2441.2,2441.1,6.37173]
[1728419444013,2.14435716,2441.3,2441.1,5.9619]
[1728419444209,2.14435716,2441.3,2441.2,0.40981]
[1728419447918,7.7715993,2441.4,2441.3,0.4098]
[1728419448209,5.62724214,2441.4,2441.3,0.4098]
[1728419448411,7.77124089,2441.4,2441.3,0.4098]
[1728419453017,8.16704089,2441.4,2441.3,0.4098]
[1728419454213,8.59114089,2441.4,2441.3,0.4098]
[1728419456918,6.44714214,2441.4,2441.3,0.4098]
[1728419457322,8.59114089,2441.4,2441.3,0.4098]
[1728419462631,2.96389875,2441.4,2441.3,0.4098]
[1728419462923,2.14399875,2441.4,2441.3,0.4098]
[1728419463322,2.14399875,2441.4,2441.3,1.8898]
[1728419464325,2.14399875,2441.5,2441.4,0.40978]
[1728419464515,2.14399875,2441.5,2441.4,1.19238]
[1728419464717,2.55375875,2441.5,2441.4,1.19238]
[1728419465635,0.40976,2441.5,2441.4,1.19238]
[1728419466523,0.40976,2441.5,2441.4,0.80458]
[1728419466717,3.09190777,2441.5,2441.4,0.80458]
[1728419466923,3.50240777,2441.5,2441.4,0.80458]
[1728419470728,0.82026,2441.5,2441.4,0.80458]
[1728419470923,3.50346405,2441.5,2441.4,0.80458]
[1728419473525,2.68320405,2441.5,2441.4,0.80458]
[1728419473723,3.09296405,2441.5,2441.4,0.80458]
[1728419477422,0.40976,2441.5,2441.4,0.80458]
[1728419480826,0.40978,2441.4,2441.3,0.79269]
[1728419481036,0.82758,2441.4,2441.3,0.79269]
[1728419485143,0.81868,2441.5,2441.3,0.3829]
[1728419485343,0.81868,2441.5,2441.4,0.40978]
[1728419485646,0.40978,2441.5,2441.4,0.40978]
[1728419486441,3.6227,2441.7,2441.4,5.576]
[1728419486442,6.41798335,2441.7,2441.4,5.576]
[1728419486637,3.2078,2441.7,2441.6,1.88975]
[1728419486840,2.68710052,2441.7,2441.6,1.88975]
[1728419487039,2.68722533,2441.8,2441.6,5.5752]
[1728419487245,2.14896423,2441.7,2441.6,0.40975]
[1728419487543,2.14896423,2441.8,2441.7,0.40973]
[1728419487753,2.14896423,2441.8,2441.7,1.88973]
[1728419489055,2.68722533,2442.0,2441.7,1.48]
[1728419489056,2.14896423,2441.9,2441.7,1.48]
[1728419489254,2.14896423,2441.9,2441.8,0.40971]
[1728419490358,2.14896423,2442.0,2441.9,0.4097]
[1728419490659,2.55698331,2442.0,2441.9,1.8897]
[1728419491065,2.14680458,2442.0,2441.7,1.48]
[1728419491361,0.40975,2441.7,2441.6,0.40973]
[1728419491754,2.55656644,2441.7,2441.6,0.40973]
[1728419492059,0.40975,2441.7,2441.6,0.40973]
[1728419494458,2.55656644,2441.7,2441.6,0.40973]
[1728419502557,0.40975,2441.7,2441.6,0.40973]
[1728419502861,2.55654644,2441.8,2441.7,0.40973]
[1728419503262,2.14681644,2441.8,2441.7,0.40973]
[1728419503463,2.55652644,2441.8,2441.7,0.40973]
[1728419504861,0.40971,2441.8,2441.7,0.40973]
[1728419505659,2.14681644,2441.9,2441.8,0.40971]
[1728419505964,2.14681644,2442.0,2441.9,0.4097]
[1728419506168,2.14681644,2442.0,2441.9,1.8897]
[1728419506862,1.5001,2442.3,2442.2,0.40965]
[1728419506863,0.476,2442.3,2442.2,0.40965]
[1728419507061,0.476,2442.6,2442.5,0.4096]
[1728419507366,6.30459533,2442.7,2442.6,0.40958]
[1728419507367,3.2078,2442.7,2442.6,0.40958]
[1728419507557,3.61736,2442.7,2442.6,1.88958]
[1728419509164,3.2078,2442.7,2442.6,1.88958]
[1728419509667,0.4075,2442.8,2442.7,0.40956]
[1728419511270,0.4075,2442.8,2442.6,1.48]
[1728419511271,0.3942,2442.9,2442.8,0.40955]
[1728419511462,3.16322533,2443.4,2442.8,5.5736]
[1728419511761,3.61724,2443.5,2443.4,0.40944]
[1728419511965,3.61724,2443.5,2443.4,1.88944]
[1728419511966,4.00023,2443.5,2443.4,1.88944]
[1728419512955,0.79243,2443.5,2443.4,1.88944]
[1728419514163,0.79243,2443.5,2443.0,0.4083]
[1728419514164,0.383,2443.5,2443.3,0.40945]
[1728419514363,0.40947,2443.3,2443.2,0.40947]
[1728419514671,0.4095,2443.1,2443.0,0.4095]
[1728419515368,0.8245,2443.1,2443.0,0.4095]
[1728419515964,0.415,2443.1,2443.0,0.4095]
[1728419516367,0.8245,2443.1,2443.0,0.4095]
[1728419517967,0.8245,2443.1,2442.9,3.99761]
[1728419517968,0.40951,2443.0,2442.9,3.99761]
[1728419518169,0.4099,2443.0,2442.9,3.99761]
[1728419518474,0.81941,2443.0,2442.9,3.99761]
[1728419519971,0.81941,2443.0,2442.9,3.60951]
[1728419520175,0.4099,2443.0,2442.9,3.60951]
[1728419521778,0.415,2443.1,2443.0,0.40951]
[1728419521979,0.412,2443.2,2442.9,3.2]
[1728419522175,0.412,2443.2,2443.1,0.4095]
[1728419522369,0.82148,2443.2,2443.1,0.4095]
[1728419523373,0.412,2443.2,2443.1,0.4095]
[1728419523773,0.82148,2443.2,2443.1,0.4095]
[1728419526472,0.4221,2443.3,2443.2,0.40948]
[1728419527178,0.83156,2443.3,2443.2,0.40948]
[1728419535585,0.4221,2443.3,2443.2,0.40948]
[1728419535976,0.83156,2443.3,2443.2,0.40948]
[1728419536176,0.7879,2443.4,2443.3,0.40946]
[1728419536378,3.61723,2443.5,2443.3,1.47]
[1728419536584,3.61723,2443.5,2443.4,0.40944]
[1728419536886,3.61723,2443.5,2443.4,0.81104]
[1728419537085,3.61723,2443.5,2443.4,4.90384]
[1728419537482,0.40943,2443.5,2443.4,4.90384]
[1728419537680,0.476,2443.9,2443.6,0.40941]
[1728419537878,1.20694,2444.1,2444.0,0.40934]
[1728419538078,1.20694,2444.1,2444.0,1.87934]
[1728419538079,0.7976,2444.1,2444.0,1.87934]
[1728419538289,1.20693,2444.1,2444.0,1.47]
[1728419538476,0.40936,2444.0,2443.9,0.40935]
[1728419538786,1.20694,2444.1,2444.0,0.40934]
[1728419538982,0.40934,2444.0,2443.9,1.87935]
[1728419539883,0.40928,2444.4,2444.2,0.40931]
[1728419540087,4.173,2444.5,2444.4,0.40928]
[1728419540478,4.173,2444.5,2444.4,3.59928]
[1728419540791,1.64045,2444.6,2444.4,3.19]
[1728419540992,1.64044,2444.6,2444.5,0.40926]
[1728419541179,0.40922,2444.8,2444.6,0.40924]
[1728419541381,0.40922,2444.8,2444.7,0.40923]
[1728419541689,0.8326,2444.9,2444.8,0.40921]
[1728419542098,0.4234,2444.9,2444.8,0.40921]
[1728419542388,0.40917,2445.1,2444.8,0.40921]
[1728419542688,0.40917,2445.1,2445.0,0.40918]
[1728419542985,4.23064,2445.3,2445.0,0.40918]
[1728419543192,0.40916,2445.1,2445.0,0.40918]
[1728419543393,0.40918,2445.0,2444.9,3.59918]
[1728419543887,0.40917,2445.1,2445.0,0.40917]
[1728419544085,1.02287,2445.2,2444.9,3.19]
[1728419544286,0.40918,2445.0,2444.9,3.59918]
[1728419545586,3.2078,2445.3,2444.7,3.19]
[1728419545793,0.40924,2444.6,2444.5,3.59925]
[1728419546194,0.40924,2444.6,2444.5,7.68965]
[1728419547090,0.40924,2444.7,2444.6,0.40924]
[1728419547288,0.40924,2444.6,2444.5,3.59925]
[1728419547692,0.40924,2444.6,2444.5,7.2804]
[1728419548194,0.40924,2444.6,2444.5,7.68966]
[1728419548390,0.40924,2444.6,2444.5,3.59926]
[1728419548699,0.40924,2444.6,2444.5,7.68966]
[1728419549392,0.40924,2444.6,2444.5,3.19]
[1728419549793,0.40924,2444.6,2444.5,7.2804]
[1728419549993,0.40924,2444.6,2444.5,7.68966]
[1728419550293,0.40928,2444.4,2444.3,0.40928]
[1728419551787,0.40928,2444.4,2443.9,0.095]
[1728419551788,0.40934,2444.0,2443.9,0.095]
[1728419551989,0.40933,2444.1,2443.9,0.40936]
[1728419552189,2.26506,2444.3,2444.0,0.40934]
[1728419552390,0.40934,2444.1,2444.0,3.59934]
[1728419554801,0.40934,2444.1,2444.0,3.19]
[1728419555289,2.26506,2444.3,2444.1,0.40931]
[1728419555290,0.40932,2444.2,2444.1,0.40931]
[1728419555492,1.65111,2444.3,2444.2,0.40931]
[1728419555692,1.65111,2444.3,2444.2,3.59931]
[1728419555888,1.65111,2444.3,2444.2,3.19]
[1728419556292,1.65111,2444.3,2444.2,3.59931]
[1728419556602,1.65111,2444.3,2444.2,3.19]
[1728419557296,1.65111,2444.3,2444.2,3.59931]
[1728419557297,1.22691,2444.3,2444.2,3.59931]
[1728419558904,1.22691,2444.3,2444.2,3.19]
[1728419560703,0.40931,2444.2,2444.1,0.81361]
[1728419561101,0.8176,2444.3,2443.9,3.19]
[1728419561397,0.40934,2444.0,2443.9,3.59936]
[1728419561698,0.40934,2444.0,2443.9,3.19]
[1728419561901,0.40934,2444.0,2443.9,3.59936]
[1728419566094,0.40934,2444.0,2443.9,0.40936]
[1728419568998,9.32878,2444.0,2443.3,0.095]
[1728419569201,0.40948,2443.2,2443.1,0.095]
[1728419569505,0.40955,2442.8,2442.7,31.0]
[1728419569704,3.2078,2442.9,2442.4,0.7871]
[1728419569905,3.6085,2442.9,2442.3,3.19]
[1728419570202,0.4096,2442.5,2442.4,31.0]
[1728419570803,0.3929,2442.6,2442.3,3.59962]
[1728419571103,0.40961,2442.5,2442.3,3.59962]
[1728419571403,0.40961,2442.4,2442.3,34.59962]
[1728419572300,0.40965,2442.2,2442.1,2.99871802]
[1728419572501,0.40965,2442.2,2441.6,0.11]
[1728419572502,6.3978,2442.2,2441.6,0.97583206]
[1728419572802,3.59973,2441.7,2441.6,0.97583206]
[1728419572998,0.40976,2441.6,2441.4,31.0]
[1728419573203,0.40976,2441.6,2441.5,4.096]
[1728419573505,0.40976,2441.6,2441.5,8.41903002]
[1728419574602,0.40976,2441.5,2441.4,31.0]
[1728419574798,0.40976,2441.6,2441.4,31.0]
[1728419574998,0.40976,2441.6,2441.3,3.6176]
[1728419575406,0.40976,2441.6,2441.3,34.6176]
[1728419575707,3.61751,2441.9,2441.7,0.40972]
[1728419576007,3.2078,2441.9,2441.4,3.9993]
[1728419576207,0.40969,2442.0,2441.8,0.40971]
[1728419576595,3.2078,2442.2,2441.4,3.9993]
[1728419576905,3.2078,2442.2,2441.5,9.60440863]
[1728419576906,0.40976,2441.6,2441.5,9.60440863]
[1728419577109,6.80756,2441.6,2441.5,9.60440863]
[1728419577406,0.40981,2441.2,2441.1,0.095]
[1728419577604,0.40984,2441.1,2440.9,31.0]
[1728419577909,6.3978,2441.2,2440.9,31.40986]
[1728419578104,6.80762,2441.2,2440.9,31.40986]
[1728419578299,6.80763,2441.2,2440.9,31.40986]
[1728419578499,6.80763,2441.2,2440.9,31.40985]
[1728419578707,3.61763,2441.2,2440.9,31.40985]
[1728419579208,3.61763,2441.2,2440.9,0.40985]
[1728419580605,3.61763,2441.2,2439.9,0.11]
[1728419580606,7.2868,2441.1,2439.9,0.11]
[1728419580808,3.2078,2440.4,2439.4,0.385]
[1728419580999,3.61782,2440.0,2439.6,0.41007]
[1728419581205,3.19,2439.8,2439.7,5.11434681]
[1728419581510,6.80782,2440.0,2439.7,0.41006]
[1728419581709,6.3978,2440.0,2439.7,0.41006]
[1728419583301,3.2078,2440.0,2439.5,0.4101]
[1728419583504,3.2078,2440.0,2439.7,0.41005]
[1728419584212,3.61782,2440.0,2439.7,0.41005]
[1728419584405,3.61782,2440.0,2439.8,0.41005]
[1728419584607,3.2078,2440.0,2439.8,0.41005]
[1728419585103,3.60001,2440.1,2439.8,0.41005]
[1728419585300,3.6208,2440.3,2439.9,3.2078]
[1728419585505,3.3028,2440.7,2439.9,8.95197202]
[1728419585809,3.2078,2440.4,2440.0,0.41002]
[1728419586007,3.2078,2440.4,2440.3,0.40997]
[1728419586205,3.2078,2440.4,2440.3,31.40997]
[1728419586410,3.2078,2440.4,2440.3,35.50757]
[1728419588510,3.19,2440.6,2440.3,35.0976]
[1728419588709,3.61771,2440.7,2440.5,0.40993]
[1728419589912,3.61771,2440.7,2440.3,31.0]
[1728419589913,6.3978,2440.7,2440.3,31.0]
[1728419590112,0.40993,2440.6,2440.4,0.40994]
[1728419590910,6.3978,2440.7,2440.6,0.40991]
[1728419591111,3.2078,2440.7,2440.6,0.40991]
[1728419592710,3.2078,2440.7,2440.3,31.0]
[1728419592909,3.6177,2440.7,2440.6,0.40991]
[1728419593318,3.6177,2440.7,2440.5,0.40992]
[1728419593713,3.6177,2440.7,2440.6,0.40991]
[1728419594211,3.2078,2440.7,2440.6,0.40991]
[1728419595309,3.6177,2440.7,2440.6,0.40991]
[1728419595515,3.2078,2440.7,2440.6,0.40991]
[1728419596125,3.6177,2440.7,2440.6,0.40991]
[1728419596314,3.2078,2440.7,2440.6,0.40991]
[1728419597826,0.4234,2440.8,2440.7,0.4099]
[1728419603830,0.83328,2440.8,2440.7,0.4099]
[1728419604020,4.02328,2440.8,2440.7,0.4099]
[1728419604327,3.6134,2440.8,2440.7,0.4099]
[1728419608034,0.4234,2440.8,2440.7,0.4099]
[1728419609225,1.1196,2441.1,2440.7,0.4099]
[1728419609226,0.095,2441.1,2441.0,0.40985]
[1728419609429,0.4185,2441.1,2441.0,0.40985]
[1728419616141,3.19,2441.3,2441.0,0.40985]
[1728419616337,3.19,2441.3,2441.2,0.40981]
[1728419623241,3.6268,2441.4,2441.3,0.4098]
[1728419628036,0.419,2441.4,2441.3,0.4098]
[1728419641256,2.12723888,2441.7,2441.3,5.12047]
[1728419641558,1.48,2441.8,2441.7,0.40973]
[1728419641947,3.60723888,2441.8,2441.7,0.40973]
[1728419642152,1.48,2441.8,2441.7,0.40973]
[1728419642659,3.60723888,2441.8,2441.7,0.40973]
[1728419643161,3.60723888,2441.8,2441.2,1.06527066]
[1728419643162,5.5752,2441.8,2441.2,1.06527066]
[1728419643355,1.48,2441.3,2441.2,0.4098]
[1728419643754,1.8803,2441.3,2441.2,0.4098]
[1728419645157,2.2901,2441.3,2441.2,0.4098]
[1728419645457,1.8803,2441.3,2441.2,0.4098]
[1728419646363,2.2901,2441.3,2441.2,0.4098]
[1728419648356,0.4003,2441.3,2441.2,0.4098]
[1728419648958,1.8803,2441.3,2441.2,0.4098]
[1728419650965,0.4003,2441.3,2441.2,0.4098]
[1728419654668,2.5420612,2441.3,2441.2,0.4098]
[1728419657064,2.1417612,2441.4,2441.3,0.4098]
[1728419657763,4.5471025,2441.5,2441.3,0.4098]
[1728419658067,2.14718354,2441.4,2441.3,0.4098]
[1728419667273,4.9568725,2441.5,2441.4,0.40978]
[1728419675172,0.4098,2441.4,2441.2,1.06527066]
[1728419675371,0.4098,2441.4,2441.2,0.4098]
[1728419675372,2.30221,2441.3,2441.2,0.4098]
[1728419675578,5.3798125,2441.3,2441.2,0.4098]
[1728419675773,5.3798125,2441.3,2441.0,1.47511066]
[1728419675774,0.40983,2441.1,2441.0,1.47511066]
[1728419675978,0.40985,2441.0,2440.9,1.06527066]
[1728419676173,0.79275,2441.0,2440.9,0.40986]
[1728419676374,3.4503525,2441.0,2440.9,0.40986]
[1728419677778,0.79275,2441.0,2440.9,0.40986]
[1728419678178,3.4503525,2441.0,2440.9,0.40986]
[1728419678373,0.79275,2441.0,2440.9,0.40986]
[1728419680086,2.53175387,2441.0,2440.9,0.40986]
[1728419684482,0.3829,2441.0,2440.9,0.40986]
[1728419695280,3.62885387,2441.2,2441.1,0.40983]
[1728419697190,4.03866387,2441.2,2441.1,0.40983]
[1728419697591,3.62885387,2441.2,2441.1,0.40983]
[1728419699292,1.48,2441.2,2441.1,0.40983]
[1728419699491,3.62885387,2441.2,2441.1,0.40983]
[1728419700391,4.03866387,2441.2,2441.1,0.40983]
[1728419701492,3.62885387,2441.2,2441.1,0.40983]
[1728419702787,1.48,2441.2,2441.1,0.40983]
[1728419704192,3.62885387,2441.2,2441.1,0.40983]
[1728419707692,2.14885387,2441.2,2441.1,0.40983]
[1728419707891,2.14885387,2441.3,2441.2,0.40981]
[1728419708791,2.14885387,2441.3,2441.2,1.18801]
[1728419712396,2.14885387,2441.3,2441.2,0.79841]
[1728419714399,2.55865387,2441.3,2441.2,0.79841]
[1728419714606,2.55865387,2441.3,2441.2,0.40981]
[1728419714607,3.0674025,2441.3,2441.2,0.40981]
[1728419714791,0.40984,2441.2,2441.1,0.40981]
[1728419715097,2.50459,2441.1,2440.6,3.2078]
[1728419715296,1.8899,2440.8,2440.7,0.40988]
[1728419716503,1.48,2440.8,2440.7,0.40988]
[1728419717207,1.88988,2440.8,2440.7,0.40988]
[1728419717393,0.4099,2440.7,2440.6,4.031]
[1728419718201,3.62868276,2440.8,2440.6,3.6211]
[1728419718406,4.03858276,2440.8,2440.7,0.4099]
[1728419719295,1.8899,2440.8,2440.7,0.4099]
[1728419720102,4.03890793,2440.8,2440.7,0.4099]
[1728419720405,1.8899,2440.8,2440.7,0.4099]
[1728419720604,0.4099,2440.7,2440.6,3.2078]
[1728419720903,0.40993,2440.5,2440.4,0.40994]
[1728419721300,2.5588176,2440.5,2440.4,0.40994]
[1728419721605,2.9762176,2440.5,2440.4,0.40994]
[1728419721806,2.5662876,2440.5,2440.4,0.40994]
[1728419722002,2.1488876,2440.5,2440.4,0.40994]
[1728419723106,2.71443,2440.6,2440.2,1.80226]
[1728419723107,4.8633176,2440.6,2440.2,1.80226]
[1728419723306,4.8633176,2440.6,2440.5,0.40993]
[1728419723501,2.71443,2440.6,2440.5,0.40993]
[1728419723706,2.97238705,2440.6,2440.5,0.40993]
[1728419723910,3.38229705,2440.6,2440.5,0.40993]
[1728419724105,2.97238705,2440.6,2440.5,0.40993]
[1728419724602,3.38229705,2440.6,2440.5,0.40993]
[1728419725204,1.23441,2440.6,2440.5,0.40993]
[1728419727705,0.8245,2440.6,2440.5,0.40993]
[1728419727906,0.82761,2440.6,2440.5,0.40993]
[1728419728204,0.4177,2440.6,2440.5,0.40993]
[1728419728406,0.82761,2440.6,2440.5,0.40993]
[1728419728607,0.4177,2440.6,2440.5,0.40993]
[1728419748736,2.14788705,2440.9,2440.5,0.40993]
[1728419748944,2.68690827,2441.0,2440.9,0.40986]
[1728419748945,4.86024705,2441.0,2440.9,0.40986]
[1728419754147,2.71236,2441.0,2440.9,0.40986]
[1728419754951,4.85885381,2441.0,2440.9,0.40986]
[1728419755146,2.71236,2441.0,2440.9,0.40986]
[1728419756642,0.40989,2440.8,2440.7,0.40988]
[1728419756845,1.88989,2440.8,2440.7,0.40988]
[1728419760647,1.48,2440.8,2440.7,0.40988]
[1728419760855,1.88987,2440.9,2440.8,0.40988]
[1728419764148,1.575,2441.3,2441.2,0.40981]
[1728419764352,0.40984,2441.2,2441.1,0.40982]
[1728419764550,1.88984,2441.2,2441.1,0.40982]
[1728419766760,1.48,2441.2,2441.1,0.40982]
[1728419767055,1.88981,2441.2,2441.1,0.40982]
[1728419774764,0.40981,2441.2,2441.1,0.40982]
[1728419780469,0.40977,2441.5,2441.2,0.40981]
[1728419780669,0.40976,2441.6,2441.5,0.40975]
[1728419781063,0.40976,2441.6,2441.0,3.6315]
[1728419781263,1.48,2441.2,2441.0,3.6315]
[1728419781458,1.88983,2441.2,2441.1,0.4098]
[1728419781864,2.2902,2441.2,2441.1,0.4098]
[1728419782263,2.70001,2441.2,2441.1,0.4098]
[1728419782570,2.2902,2441.2,2441.1,0.4098]
[1728419782870,2.30199,2441.4,2441.3,0.4098]
[1728419783971,1.8922,2441.4,2441.3,0.4098]
[1728419784771,2.30202,2441.4,2441.3,0.4098]
[1728419790883,5.50982,2441.4,2441.3,0.4098]
[1728419793881,2.30202,2441.4,2441.3,0.4098]
[1728419798775,1.8922,2441.4,2441.3,0.4098]
[1728419799576,2.30202,2441.4,2441.3,0.4098]
[1728419803477,1.8922,2441.4,2441.3,0.4098]
[1728419803681,2.30202,2441.4,2441.3,0.4098]
[1728419810391,0.40984,2441.3,2441.2,0.40984]
[1728419810593,0.82134,2441.3,2441.2,0.40984]
[1728419811096,4.91734,2441.3,2441.2,0.40984]
[1728419813692,8.12514,2441.3,2441.2,0.40984]
[1728419814485,7.71364,2441.3,2441.2,0.40984]
[1728419814896,3.61764,2441.3,2441.2,0.40984]
[1728419815696,3.2078,2441.3,2441.2,0.40984]
[1728419816499,4.00486242,2441.3,2441.2,0.40984]
[1728419817994,3.2078,2441.3,2441.2,0.40984]
[1728419818197,4.00480529,2441.3,2441.2,0.40984]
[1728419820702,0.79700529,2441.3,2441.2,0.40984]
[1728419822902,0.79700529,2441.3,2441.2,4.50584]
[1728419823102,3.2078,2441.4,2441.3,0.40984]
[1728419823303,4.00476704,2441.4,2441.3,1.25344]
[1728419823811,4.00476704,2441.4,2441.3,32.25344]
[1728419824109,3.2078,2441.4,2441.3,32.25344]
[1728419824309,3.2078,2441.4,2441.3,1.25344]
[1728419825208,4.00475036,2441.4,2441.3,1.65144]
[1728419829703,0.79695036,2441.4,2441.3,5.74744]
[1728419830011,0.79693104,2441.6,2441.5,0.4098]
[1728419830314,0.81936,2441.8,2441.7,0.40977]
[1728419830315,1.61629104,2441.8,2441.7,0.40977]
[1728419830707,0.81936,2441.8,2441.7,0.40977]
[1728419831305,0.40976,2441.8,2441.7,0.40977]
[1728419831509,1.88975,2441.9,2441.8,0.40975]
[1728419836315,5.09755,2441.9,2441.8,0.40975]
[1728419837615,0.40978,2441.8,2441.7,0.40975]
[1728419837819,0.82758,2441.8,2441.7,0.40975]
[1728419845723,0.4178,2441.8,2441.4,1.02455]
[1728419845927,4.6878,2441.6,2441.3,0.4115]
[1728419846127,1.48,2441.7,2441.4,0.40982]
[1728419846330,0.4107,2441.7,2441.6,0.40979]
[1728419847230,0.82047,2441.7,2441.6,0.40979]
[1728419852932,0.4107,2441.7,2441.6,0.40979]
[1728419853727,3.2078,2441.8,2441.7,0.40977]
[1728419855643,2.28864,2441.9,2441.8,0.40975]
[1728419856642,1.8789,2441.9,2441.8,0.40975]
[1728419856842,2.28864,2441.9,2441.8,0.40975]
[1728419858043,1.8789,2441.9,2441.8,0.40975]
[1728419860044,2.28864,2441.9,2441.8,0.40975]
[1728419861445,0.80864,2441.9,2441.8,0.40975]
[1728419861846,0.4098,2441.6,2441.5,0.40978]
[1728419862445,0.7977,2441.6,2441.5,0.40978]
[1728419862645,0.4098,2441.5,2441.4,0.81211]
[1728419862945,1.2282,2441.5,2441.4,0.81211]
[1728419865139,0.8293,2441.5,2441.4,0.81211]
[1728419878555,1.2262,2441.5,2441.4,0.81211]
[1728419878857,1.2262,2441.5,2441.4,31.81211]
[1728419881059,0.8293,2441.5,2441.4,31.81211]
[1728419882860,0.4195,2441.5,2441.4,31.81211]
[1728419883757,0.8293,2441.5,2441.4,31.81211]
[1728419884263,0.4195,2441.5,2441.4,31.81211]
[1728419885261,0.8293,2441.5,2441.4,31.81211]
[1728419887564,0.8293,2441.5,2441.4,0.81211]
[1728419893266,0.40985,2441.2,2441.1,0.40986]
[1728419893464,3.2078,2441.2,2441.1,0.40986]
[1728419893671,0.40984,2441.4,2441.3,0.40984]
[1728419895372,0.4195,2441.5,2441.2,0.4187]
[1728419895664,0.82932,2441.5,2441.4,0.40982]
[1728419897765,0.40982,2441.5,2441.4,0.40982]
[1728419897963,0.40982,2441.5,2441.4,0.83272]
[1728419904678,0.40982,2441.5,2441.4,0.40982]